[Event "*** Titled Tuesday Blitz"]
[Site "Chess.com"]
[Date "2020.10.20"]
[Round "3"]
[White "Skatchkov_V"]
[Black "ajedrezhoy"]
[Result "1-0"]
[WhiteElo "2536"]
[BlackElo "2231"]
[TimeControl "180+1"]
[EndTime "10:30:41 PDT"]
[Termination "Skatchkov_V won on time"]

1. d4 {[%clk 0:03:00.7]} 1... Nf6 {[%clk 0:02:58.3]} 2. c4 {[%clk 0:03:01]} 2...
b6 {[%clk 0:02:56.6]} 3. Nf3 {[%clk 0:03:01]} 3... Bb7 {[%clk 0:02:55.8]} 4. g3
{[%clk 0:03:01.3]} 4... g6 {[%clk 0:02:55.6]} 5. Bg2 {[%clk 0:03:01.2]} 5... c5
{[%clk 0:02:54.3]} 6. d5 {[%clk 0:03:00.6]} 6... b5 {[%clk 0:02:54]} 7. O-O
{[%clk 0:02:58.6]} 7... bxc4 {[%clk 0:02:53.5]} 8. Nc3 {[%clk 0:02:59.1]} 8...
d6 {[%clk 0:02:51]} 9. e4 {[%clk 0:02:54.9]} 9... Nbd7 {[%clk 0:02:49.7]} 10.
Qa4 {[%clk 0:02:51.4]} 10... Bg7 {[%clk 0:02:48.2]} 11. Qxc4 {[%clk 0:02:50.2]}
11... O-O {[%clk 0:02:39.7]} 12. h3 {[%clk 0:02:46.8]} 12... Qa5 {[%clk
0:02:30.6]} 13. Re1 {[%clk 0:02:25.7]} 13... Rab8 {[%clk 0:02:24.1]} 14. Qd3
{[%clk 0:02:15.5]} 14... Ba6 {[%clk 0:02:20.8]} 15. Qc2 {[%clk 0:02:15.8]} 15...
Qb4 {[%clk 0:02:07.8]} 16. Rb1 {[%clk 0:02:10.3]} 16... Ne8 {[%clk 0:01:56]} 17.
Bd2 {[%clk 0:02:08.4]} 17... Nc7 {[%clk 0:01:54.8]} 18. b3 {[%clk 0:02:07.9]}
18... Nb5 {[%clk 0:01:31.2]} 19. Ne2 {[%clk 0:01:47.5]} 19... Na3 {[%clk
0:01:25.6]} 20. Qc1 {[%clk 0:01:45.3]} 20... Qxe4 {[%clk 0:01:11]} 21. Qxa3
{[%clk 0:01:40.9]} 21... Bxe2 {[%clk 0:01:10.7]} 22. Ba5 {[%clk 0:01:01.3]}
22... Qd3 {[%clk 0:01:06.3]} 23. Nh2 {[%clk 0:00:59.6]} 23... Qa6 {[%clk
0:00:58.7]} 24. Rbc1 {[%clk 0:00:46.7]} 24... Ne5 {[%clk 0:00:49.8]} 25. Rc2
{[%clk 0:00:40.2]} 25... Bd3 {[%clk 0:00:47.7]} 26. Rd2 {[%clk 0:00:33.1]} 26...
Rb5 {[%clk 0:00:40.4]} 27. Bb4 {[%clk 0:00:31.4]} 27... Rxb4 {[%clk 0:00:40.2]}
28. Qc1 {[%clk 0:00:20.8]} 28... Bb5 {[%clk 0:00:38.4]} 29. Re3 {[%clk
0:00:15.4]} 29... Rd4 {[%clk 0:00:35.7]} 30. Rc2 {[%clk 0:00:12]} 30... Nd3
{[%clk 0:00:33.2]} 31. Qb1 {[%clk 0:00:08.4]} 31... Nb4 {[%clk 0:00:32.3]} 32.
Rc1 {[%clk 0:00:08.4]} 32... Qxa2 {[%clk 0:00:31.5]} 33. Rxe7 {[%clk 0:00:08.4]}
33... Qxb1 {[%clk 0:00:30.3]} 34. Rxb1 {[%clk 0:00:09.3]} 34... Nxd5 {[%clk
0:00:28.7]} 35. Rxa7 {[%clk 0:00:08.8]} 35... Bd3 {[%clk 0:00:25.8]} 36. Rd1
{[%clk 0:00:08.8]} 36... Nb4 {[%clk 0:00:25.2]} 37. Rd7 {[%clk 0:00:08.5]} 37...
Bf5 {[%clk 0:00:22.7]} 38. Rxd6 {[%clk 0:00:08.7]} 38... Rxd1+ {[%clk
0:00:21.3]} 39. Rxd1 {[%clk 0:00:09.1]} 39... Bc2 {[%clk 0:00:21.1]} 40. Rc1
{[%clk 0:00:08.9]} 40... Bb2 {[%clk 0:00:18.9]} 41. Re1 {[%clk 0:00:09.3]} 41...
Bd4 {[%clk 0:00:15.5]} 42. Rc1 {[%clk 0:00:09.3]} 42... Bxb3 {[%clk 0:00:14.9]}
43. Nf3 {[%clk 0:00:10.2]} 43... Bd5 {[%clk 0:00:12.8]} 44. Nxd4 {[%clk
0:00:10]} 44... cxd4 {[%clk 0:00:11.9]} 45. Bf1 {[%clk 0:00:09.7]} 45... Rd8
{[%clk 0:00:10.5]} 46. Rd1 {[%clk 0:00:10.3]} 46... Be6 {[%clk 0:00:10.2]} 47.
Rd2 {[%clk 0:00:10.7]} 47... Nc6 {[%clk 0:00:09.9]} 48. f4 {[%clk 0:00:11]}
48... Kg7 {[%clk 0:00:09.2]} 49. Kf2 {[%clk 0:00:11.5]} 49... Ne7 {[%clk
0:00:08.9]} 50. Bg2 {[%clk 0:00:11.8]} 50... h5 {[%clk 0:00:08.5]} 51. Be4
{[%clk 0:00:11.8]} 51... Nf5 {[%clk 0:00:08.4]} 52. Rb2 {[%clk 0:00:08.8]} 52...
d3 {[%clk 0:00:07.8]} 53. Rd2 {[%clk 0:00:08.6]} 53... Bc4 {[%clk 0:00:07.7]}
54. g4 {[%clk 0:00:07.5]} 54... Ne7 {[%clk 0:00:06.8]} 55. Ke3 {[%clk
0:00:07.6]} 55... hxg4 {[%clk 0:00:06.3]} 56. hxg4 {[%clk 0:00:08]} 56... f5
{[%clk 0:00:06.2]} 57. gxf5 {[%clk 0:00:07.5]} 57... Nxf5+ {[%clk 0:00:06.1]}
58. Bxf5 {[%clk 0:00:05.4]} 58... gxf5 {[%clk 0:00:06]} 59. Rg2+ {[%clk
0:00:06.3]} 59... Kf6 {[%clk 0:00:05.4]} 60. Kd2 {[%clk 0:00:07.2]} 60... Bb5
{[%clk 0:00:05.1]} 61. Rh2 {[%clk 0:00:07.2]} 61... Rc8 {[%clk 0:00:04.2]} 62.
Rh6+ {[%clk 0:00:07.8]} 62... Kg7 {[%clk 0:00:04.1]} 63. Rb6 {[%clk 0:00:07.7]}
63... Rc2+ {[%clk 0:00:03.8]} 64. Kd1 {[%clk 0:00:08.2]} 64... Rb2 {[%clk
0:00:03.3]} 65. Rb7+ {[%clk 0:00:08.2]} 65... Kf6 {[%clk 0:00:02.6]} 66. Kc1
{[%clk 0:00:08.4]} 66... Rb4 {[%clk 0:00:01.6]} 67. Kd2 {[%clk 0:00:08.4]} 1-0

[Event "*** Titled Tuesday Blitz"]
[Site "Chess.com"]
[Date "2020.10.20"]
[Round "3"]
[White "Chessalary"]
[Black "RestartingChess"]
[Result "0-1"]
[WhiteElo "2330"]
[BlackElo "2525"]
[TimeControl "180+1"]
[EndTime "10:30:42 PDT"]
[Termination "RestartingChess won by checkmate"]

1. d4 {[%clk 0:03:00.9]} 1... Nf6 {[%clk 0:03:00.5]} 2. c4 {[%clk 0:03:00.9]}
2... g6 {[%clk 0:03:01.2]} 3. Nc3 {[%clk 0:03:01.3]} 3... c5 {[%clk 0:03:01.5]}
4. d5 {[%clk 0:03:01.4]} 4... Bg7 {[%clk 0:03:02]} 5. e4 {[%clk 0:03:01.9]} 5...
d6 {[%clk 0:03:02.5]} 6. f4 {[%clk 0:03:02.1]} 6... Bg4 {[%clk 0:03:02.4]} 7.
Nf3 {[%clk 0:03:02]} 7... Nbd7 {[%clk 0:03:02.6]} 8. Be2 {[%clk 0:03:01.1]} 8...
a6 {[%clk 0:03:01.1]} 9. O-O {[%clk 0:03:00.6]} 9... Rb8 {[%clk 0:03:01.1]} 10.
Re1 {[%clk 0:02:58.9]} 10... h5 {[%clk 0:03:00.5]} 11. h3 {[%clk 0:02:57.4]}
11... Bxf3 {[%clk 0:03:01]} 12. Bxf3 {[%clk 0:02:58.3]} 12... h4 {[%clk
0:03:00.2]} 13. e5 {[%clk 0:02:57.4]} 13... dxe5 {[%clk 0:02:59.9]} 14. fxe5
{[%clk 0:02:58.3]} 14... Nh5 {[%clk 0:03:00]} 15. e6 {[%clk 0:02:57.1]} 15...
fxe6 {[%clk 0:03:00.3]} 16. Rxe6 {[%clk 0:02:55.7]} 16... Bd4+ {[%clk
0:02:13.4]} 17. Be3 {[%clk 0:02:52.7]} 17... Nf4 {[%clk 0:02:13.8]} 18. Bxd4
{[%clk 0:02:47.2]} 18... cxd4 {[%clk 0:02:14.4]} 19. Qxd4 {[%clk 0:02:47.8]}
19... Rf8 {[%clk 0:02:09.5]} 20. Rae1 {[%clk 0:02:42.3]} 20... Nxe6 {[%clk
0:01:56.9]} 21. Rxe6 {[%clk 0:02:43.2]} 21... Rf6 {[%clk 0:01:50.5]} 22. Ne4
{[%clk 0:02:26.9]} 22... Rxe6 {[%clk 0:01:39]} 23. dxe6 {[%clk 0:02:27.8]} 23...
Nf6 {[%clk 0:01:33.5]} 24. Nxf6+ {[%clk 0:02:15.8]} 24... exf6 {[%clk
0:01:34.4]} 25. Qe4 {[%clk 0:02:15.9]} 25... Ke7 {[%clk 0:01:06.9]} 26. Qxg6
{[%clk 0:02:13.3]} 26... Qb6+ {[%clk 0:01:04.5]} 27. Kh1 {[%clk 0:02:02.6]}
27... Qxe6 {[%clk 0:01:05.4]} 28. Qh7+ {[%clk 0:02:00.7]} 28... Kd6 {[%clk
0:01:00.1]} 29. Qxh4 {[%clk 0:01:57.2]} 29... Re8 {[%clk 0:00:54]} 30. Bxb7
{[%clk 0:01:36.8]} 30... Qe5 {[%clk 0:00:44.8]} 31. Bxa6 {[%clk 0:01:28.4]}
31... Qa5 {[%clk 0:00:33.6]} 32. Qd4+ {[%clk 0:01:24.8]} 32... Kc7 {[%clk
0:00:29.8]} 33. Qa7+ {[%clk 0:01:23.5]} 33... Kd6 {[%clk 0:00:27.5]} 34. Qd4+
{[%clk 0:01:16.4]} 34... Ke7 {[%clk 0:00:22.6]} 35. Bb5 {[%clk 0:01:14.2]} 35...
Rd8 {[%clk 0:00:19.8]} 36. Qe4+ {[%clk 0:01:10.6]} 36... Kd6 {[%clk 0:00:15.7]}
37. c5+ {[%clk 0:01:03.5]} 37... Kxc5 {[%clk 0:00:12.4]} 38. Qc6+ {[%clk
0:00:55.9]} 38... Kd4 {[%clk 0:00:11.2]} 39. Qxf6+ {[%clk 0:00:54.6]} 39... Ke3
{[%clk 0:00:10.1]} 40. Qf3+ {[%clk 0:00:52.3]} 40... Kd2 {[%clk 0:00:09.2]} 41.
Qc3+ {[%clk 0:00:48.9]} 41... Qxc3 {[%clk 0:00:08.6]} 42. bxc3 {[%clk
0:00:49.8]} 42... Kxc3 {[%clk 0:00:09.3]} 43. a4 {[%clk 0:00:50.1]} 43... Kb4
{[%clk 0:00:09.7]} 44. Kh2 {[%clk 0:00:50.2]} 44... Kc5 {[%clk 0:00:10.3]} 45.
h4 {[%clk 0:00:49.8]} 45... Rh8 {[%clk 0:00:09.1]} 46. Kh3 {[%clk 0:00:50]}
46... Kd4 {[%clk 0:00:09.3]} 47. g4 {[%clk 0:00:50.9]} 47... Ke4 {[%clk
0:00:09.8]} 48. a5 {[%clk 0:00:49.6]} 48... Rb8 {[%clk 0:00:10]} 49. Bc6+ {[%clk
0:00:49.1]} 49... Kf4 {[%clk 0:00:09.9]} 50. h5 {[%clk 0:00:41.4]} 50... Rb3+
{[%clk 0:00:08.2]} 51. Kh4 {[%clk 0:00:41.9]} 51... Rb2 {[%clk 0:00:08.3]} 52.
Kh3 {[%clk 0:00:39.4]} 52... Rb3+ {[%clk 0:00:08.8]} 53. Kg2 {[%clk 0:00:38]}
53... Rb2+ {[%clk 0:00:04.9]} 54. Kf1 {[%clk 0:00:32.5]} 54... Kxg4 {[%clk
0:00:01.3]} 55. h6 {[%clk 0:00:30.7]} 55... Rh2 {[%clk 0:00:02]} 56. Bd7+ {[%clk
0:00:27.7]} 56... Kf4 {[%clk 0:00:01.2]} 57. Kg1 {[%clk 0:00:23.4]} 57... Rxh6
{[%clk 0:00:01.4]} 58. Bb5 {[%clk 0:00:24.3]} 58... Rh5 {[%clk 0:00:01.6]} 59.
Be2 {[%clk 0:00:22.8]} 59... Rxa5 {[%clk 0:00:02.3]} 60. Kf2 {[%clk 0:00:23.1]}
60... Ra2 {[%clk 0:00:02.5]} 61. Ke1 {[%clk 0:00:23.3]} 61... Ke3 {[%clk
0:00:03.4]} 62. Bg4 {[%clk 0:00:12.6]} 62... Rg2 {[%clk 0:00:03.5]} 63. Bh3
{[%clk 0:00:11.5]} 63... Rg1+ {[%clk 0:00:03.4]} 64. Bf1 {[%clk 0:00:12.4]}
64... Rh1 {[%clk 0:00:04.3]} 65. Kd1 {[%clk 0:00:11.5]} 65... Rxf1+ {[%clk
0:00:05]} 66. Kc2 {[%clk 0:00:12.2]} 66... Rf5 {[%clk 0:00:05.9]} 67. Kb3 {[%clk
0:00:12.6]} 67... Rd5 {[%clk 0:00:06.8]} 68. Kb4 {[%clk 0:00:13]} 68... Rd4+
{[%clk 0:00:07.7]} 69. Kc5 {[%clk 0:00:13.6]} 69... Ke4 {[%clk 0:00:08.6]} 70.
Kc6 {[%clk 0:00:14]} 70... Rd3 {[%clk 0:00:09.5]} 71. Kc5 {[%clk 0:00:14]} 71...
Rd4 {[%clk 0:00:09.9]} 72. Kc6 {[%clk 0:00:14.2]} 72... Rd5 {[%clk 0:00:10.5]}
73. Kb6 {[%clk 0:00:13.2]} 73... Kd4 {[%clk 0:00:11.1]} 74. Kc6 {[%clk
0:00:14.1]} 74... Kc4 {[%clk 0:00:11.9]} 75. Kb6 {[%clk 0:00:14.9]} 75... Rc5
{[%clk 0:00:12.4]} 76. Kb7 {[%clk 0:00:14.7]} 76... Kd5 {[%clk 0:00:13.3]} 77.
Kb6 {[%clk 0:00:15.4]} 77... Kd6 {[%clk 0:00:14.2]} 78. Kb7 {[%clk 0:00:15.8]}
78... Rc6 {[%clk 0:00:14.8]} 79. Kb8 {[%clk 0:00:15.9]} 79... Rc7 {[%clk
0:00:15.4]} 80. Ka8 {[%clk 0:00:16.1]} 80... Kc6 {[%clk 0:00:16.3]} 81. Kb8
{[%clk 0:00:16.7]} 81... Kb6 {[%clk 0:00:17.1]} 82. Ka8 {[%clk 0:00:16.8]} 82...
Rc8# {[%clk 0:00:18]} 0-1

[Event "*** Titled Tuesday Blitz"]
[Site "Chess.com"]
[Date "2020.10.20"]
[Round "3"]
[White "Alexander_Zubov"]
[Black "1977Ivan"]
[Result "1-0"]
[WhiteElo "2917"]
[BlackElo "2683"]
[TimeControl "180+1"]
[EndTime "10:30:51 PDT"]
[Termination "Alexander_Zubov won by checkmate"]

1. d4 {[%clk 0:03:00.9]} 1... Nf6 {[%clk 0:02:59.7]} 2. Nf3 {[%clk 0:03:01]}
2... e6 {[%clk 0:02:59.5]} 3. c4 {[%clk 0:03:00.9]} 3... d5 {[%clk 0:02:57.2]}
4. Nc3 {[%clk 0:03:00.3]} 4... c6 {[%clk 0:02:55.6]} 5. e3 {[%clk 0:02:58.8]}
5... Nbd7 {[%clk 0:02:55.3]} 6. Qc2 {[%clk 0:02:58.5]} 6... a5 {[%clk
0:02:55.2]} 7. b3 {[%clk 0:02:56.2]} 7... a4 {[%clk 0:02:51]} 8. Nxa4 {[%clk
0:02:46.4]} 8... dxc4 {[%clk 0:02:47.8]} 9. bxc4 {[%clk 0:02:44.6]} 9... e5
{[%clk 0:02:32.6]} 10. Nc3 {[%clk 0:02:41.1]} 10... Bb4 {[%clk 0:02:28.1]} 11.
Bd2 {[%clk 0:02:31.5]} 11... O-O {[%clk 0:02:07.6]} 12. Be2 {[%clk 0:02:30.3]}
12... Re8 {[%clk 0:02:03]} 13. O-O {[%clk 0:02:29.8]} 13... exd4 {[%clk
0:01:58.4]} 14. exd4 {[%clk 0:02:28.9]} 14... Nf8 {[%clk 0:01:57.7]} 15. h3
{[%clk 0:02:27.2]} 15... Ng6 {[%clk 0:01:57]} 16. Rfe1 {[%clk 0:02:25.4]} 16...
h6 {[%clk 0:01:42.8]} 17. Bd3 {[%clk 0:02:22.1]} 17... Ne7 {[%clk 0:01:32.7]}
18. Ne4 {[%clk 0:02:19.3]} 18... Nxe4 {[%clk 0:01:18.5]} 19. Bxb4 {[%clk
0:02:17.9]} 19... Nf6 {[%clk 0:01:17.3]} 20. Re3 {[%clk 0:02:09.8]} 20... Be6
{[%clk 0:01:16.7]} 21. Rae1 {[%clk 0:02:06.7]} 21... Qd7 {[%clk 0:00:58]} 22.
Bc3 {[%clk 0:01:50]} 22... Nf5 {[%clk 0:00:47.9]} 23. Re5 {[%clk 0:01:48.6]}
23... Nd6 {[%clk 0:00:46.9]} 24. Bb4 {[%clk 0:01:29.3]} 24... b5 {[%clk
0:00:32.5]} 25. Bxd6 {[%clk 0:01:12.3]} 25... Qxd6 {[%clk 0:00:18]} 26. cxb5
{[%clk 0:00:56.9]} 26... cxb5 {[%clk 0:00:18.9]} 27. Bxb5 {[%clk 0:00:55.7]}
27... Red8 {[%clk 0:00:19]} 28. a4 {[%clk 0:00:53.6]} 28... Bd5 {[%clk
0:00:18.8]} 29. Nh4 {[%clk 0:00:50.8]} 29... Rac8 {[%clk 0:00:18.7]} 30. Qd2
{[%clk 0:00:46.4]} 30... Be6 {[%clk 0:00:17.8]} 31. Nf3 {[%clk 0:00:40.7]} 31...
Qa3 {[%clk 0:00:17]} 32. R5e3 {[%clk 0:00:37.6]} 32... Qd6 {[%clk 0:00:16.5]}
33. Ra1 {[%clk 0:00:35.9]} 33... Bd5 {[%clk 0:00:16.4]} 34. a5 {[%clk
0:00:33.2]} 34... Rb8 {[%clk 0:00:16.5]} 35. Bf1 {[%clk 0:00:32.5]} 35... Ne4
{[%clk 0:00:15]} 36. Qe1 {[%clk 0:00:31.7]} 36... f5 {[%clk 0:00:14.2]} 37. a6
{[%clk 0:00:31]} 37... Ra8 {[%clk 0:00:14.2]} 38. Ne5 {[%clk 0:00:29.7]} 38...
Ng5 {[%clk 0:00:13]} 39. Rc3 {[%clk 0:00:27.5]} 39... f4 {[%clk 0:00:12.8]} 40.
Rc5 {[%clk 0:00:23.8]} 40... Be4 {[%clk 0:00:11.7]} 41. Qc3 {[%clk 0:00:20.9]}
41... f3 {[%clk 0:00:10.3]} 42. h4 {[%clk 0:00:19.4]} 42... Ne6 {[%clk
0:00:09.9]} 43. Bc4 {[%clk 0:00:19.5]} 43... Kh8 {[%clk 0:00:09.4]} 44. Bxe6
{[%clk 0:00:18.9]} 44... Qxe6 {[%clk 0:00:10.3]} 45. Nxf3 {[%clk 0:00:19.3]}
45... Bxf3 {[%clk 0:00:09.6]} 46. Qxf3 {[%clk 0:00:18.9]} 46... Rxa6 {[%clk
0:00:09.9]} 47. Rxa6 {[%clk 0:00:18.5]} 47... Qxa6 {[%clk 0:00:10.8]} 48. Rd5
{[%clk 0:00:18.8]} 48... Qa1+ {[%clk 0:00:10.1]} 49. Kh2 {[%clk 0:00:18.8]}
49... Re8 {[%clk 0:00:10.5]} 50. Rd7 {[%clk 0:00:19]} 50... Qa8 {[%clk
0:00:09.6]} 51. Qxa8 {[%clk 0:00:18.6]} 51... Rxa8 {[%clk 0:00:09.1]} 52. d5
{[%clk 0:00:19.5]} 52... Ra4 {[%clk 0:00:08.8]} 53. Kg3 {[%clk 0:00:18.4]} 53...
Rd4 {[%clk 0:00:08.3]} 54. h5 {[%clk 0:00:18.8]} 54... Kg8 {[%clk 0:00:08.9]}
55. f4 {[%clk 0:00:19.2]} 55... Kf8 {[%clk 0:00:09.4]} 56. Kg4 {[%clk
0:00:19.3]} 56... Rd2 {[%clk 0:00:09.2]} 57. g3 {[%clk 0:00:19.7]} 57... Rd3
{[%clk 0:00:09.7]} 58. Kh4 {[%clk 0:00:20.1]} 58... Re3 {[%clk 0:00:09.7]} 59.
d6 {[%clk 0:00:16.7]} 59... Rd3 {[%clk 0:00:09.7]} 60. g4 {[%clk 0:00:15.8]}
60... Rd4 {[%clk 0:00:08.3]} 61. Kg3 {[%clk 0:00:15.8]} 61... Rd3+ {[%clk
0:00:09.2]} 62. Kf2 {[%clk 0:00:16]} 62... Rd5 {[%clk 0:00:09.2]} 63. Ke3 {[%clk
0:00:15.9]} 63... Rd1 {[%clk 0:00:09.7]} 64. Ke4 {[%clk 0:00:15.9]} 64... Rd2
{[%clk 0:00:08.8]} 65. Kf5 {[%clk 0:00:15.5]} 65... Rd4 {[%clk 0:00:09.2]} 66.
Ke5 {[%clk 0:00:15]} 66... Rd2 {[%clk 0:00:08.5]} 67. Ra7 {[%clk 0:00:15.2]}
67... Re2+ {[%clk 0:00:08.4]} 68. Kf5 {[%clk 0:00:15.5]} 68... Rd2 {[%clk
0:00:08.8]} 69. Ra8+ {[%clk 0:00:15.1]} 69... Kf7 {[%clk 0:00:07.7]} 70. Rd8
{[%clk 0:00:15.6]} 70... Rd5+ {[%clk 0:00:06.8]} 71. Ke4 {[%clk 0:00:15.7]}
71... Rd1 {[%clk 0:00:07.7]} 72. g5 {[%clk 0:00:13.4]} 72... Ke6 {[%clk
0:00:07.6]} 73. gxh6 {[%clk 0:00:11.3]} 73... gxh6 {[%clk 0:00:08.5]} 74. Rh8
{[%clk 0:00:10.6]} 74... Re1+ {[%clk 0:00:08.8]} 75. Kf3 {[%clk 0:00:10.4]}
75... Kxd6 {[%clk 0:00:09.7]} 76. Rxh6+ {[%clk 0:00:10.3]} 76... Ke7 {[%clk
0:00:10.3]} 77. Rg6 {[%clk 0:00:10.5]} 77... Kf7 {[%clk 0:00:10.7]} 78. Kg4
{[%clk 0:00:10.9]} 78... Rh1 {[%clk 0:00:11.1]} 79. Kg5 {[%clk 0:00:10.5]} 79...
Rg1+ {[%clk 0:00:10.6]} 80. Kf5 {[%clk 0:00:10.6]} 80... Rf1 {[%clk 0:00:10.5]}
81. Ra6 {[%clk 0:00:09.6]} 81... Rh1 {[%clk 0:00:11.4]} 82. Ra7+ {[%clk
0:00:09.6]} 82... Kg8 {[%clk 0:00:11.7]} 83. Kg6 {[%clk 0:00:09.7]} 83... Rg1+
{[%clk 0:00:12]} 84. Kf6 {[%clk 0:00:10]} 84... Rf1 {[%clk 0:00:12.4]} 85. Ra8+
{[%clk 0:00:10.1]} 85... Kh7 {[%clk 0:00:12.3]} 86. f5 {[%clk 0:00:11]} 86...
Kh6 {[%clk 0:00:12.6]} 87. Rh8# {[%clk 0:00:09.9]} 1-0

[Event "*** Titled Tuesday Blitz"]
[Site "Chess.com"]
[Date "2020.10.20"]
[Round "3"]
[White "Ural_bogatyr"]
[Black "Yoshikrov"]
[Result "1-0"]
[WhiteElo "2380"]
[BlackElo "2120"]
[TimeControl "180+1"]
[EndTime "10:30:56 PDT"]
[Termination "Ural_bogatyr won by resignation"]

1. e4 {[%clk 0:02:55.8]} 1... c5 {[%clk 0:02:59.6]} 2. Nf3 {[%clk 0:02:54.7]}
2... d6 {[%clk 0:03:00]} 3. d4 {[%clk 0:02:46.5]} 3... cxd4 {[%clk 0:03:00.2]}
4. Qxd4 {[%clk 0:02:47.4]} 4... Nc6 {[%clk 0:02:59.9]} 5. Bb5 {[%clk 0:02:47.9]}
5... Bd7 {[%clk 0:02:59.1]} 6. Bxc6 {[%clk 0:02:48.4]} 6... Bxc6 {[%clk
0:02:59.3]} 7. Nc3 {[%clk 0:02:48.2]} 7... Nf6 {[%clk 0:02:58.9]} 8. Bg5 {[%clk
0:02:48.7]} 8... e6 {[%clk 0:02:57.4]} 9. O-O-O {[%clk 0:02:48.4]} 9... Be7
{[%clk 0:02:55.4]} 10. Qd3 {[%clk 0:02:41.7]} 10... a6 {[%clk 0:02:53.7]} 11.
Nd4 {[%clk 0:02:41.9]} 11... Qc7 {[%clk 0:02:51.1]} 12. f4 {[%clk 0:02:42.1]}
12... b5 {[%clk 0:02:37.9]} 13. e5 {[%clk 0:02:07.5]} 13... dxe5 {[%clk
0:02:34.1]} 14. fxe5 {[%clk 0:02:07.3]} 14... Nd5 {[%clk 0:02:30.8]} 15. Bxe7
{[%clk 0:02:07.2]} 15... Nxe7 {[%clk 0:02:30.8]} 16. Nxc6 {[%clk 0:02:00.2]}
16... Qxc6 {[%clk 0:02:25.1]} 17. Ne4 {[%clk 0:01:58.7]} 17... O-O {[%clk
0:02:22.6]} 18. Nd6 {[%clk 0:01:55]} 18... Nc8 {[%clk 0:02:14.1]} 19. g4 {[%clk
0:01:43.4]} 19... Nxd6 {[%clk 0:02:14.2]} 20. exd6 {[%clk 0:01:43]} 20... Rfd8
{[%clk 0:02:10.9]} 21. Rhf1 {[%clk 0:01:36.1]} 21... Ra7 {[%clk 0:02:10.7]} 22.
Rf4 {[%clk 0:01:31.6]} 22... Rad7 {[%clk 0:02:09.3]} 23. Rd4 {[%clk 0:01:32]}
23... a5 {[%clk 0:01:56.4]} 24. g5 {[%clk 0:01:31.7]} 24... b4 {[%clk
0:01:51.5]} 25. h4 {[%clk 0:01:27.3]} 25... a4 {[%clk 0:01:41.3]} 26. Kb1 {[%clk
0:01:26.1]} 26... g6 {[%clk 0:01:26.6]} 27. h5 {[%clk 0:01:14.7]} 27... Qc5
{[%clk 0:01:17.8]} 28. Qg3 {[%clk 0:01:06.7]} 28... e5 {[%clk 0:01:16.1]} 29.
Rd5 {[%clk 0:00:41.8]} 29... Rxd6 {[%clk 0:01:11.5]} 30. c4 {[%clk 0:00:41.6]}
30... Rxd5 {[%clk 0:01:11.4]} 31. cxd5 {[%clk 0:00:40.4]} 31... Rc8 {[%clk
0:00:57.5]} 32. Qd3 {[%clk 0:00:35.1]} 32... a3 {[%clk 0:00:47.4]} 33. d6 {[%clk
0:00:25]} 33... axb2 {[%clk 0:00:43.2]} 34. Kxb2 {[%clk 0:00:20.2]} 34... Qc3+
{[%clk 0:00:37.6]} 35. Qxc3 {[%clk 0:00:20.1]} 35... bxc3+ {[%clk 0:00:38.5]}
36. Kc2 {[%clk 0:00:20.7]} 36... Kf8 {[%clk 0:00:36.1]} 37. hxg6 {[%clk
0:00:17.9]} 37... hxg6 {[%clk 0:00:33]} 38. Rd5 {[%clk 0:00:14.9]} 38... Ra8
{[%clk 0:00:27.4]} 39. Kxc3 {[%clk 0:00:09.3]} 39... Ke8 {[%clk 0:00:25.9]} 40.
Kb3 {[%clk 0:00:08]} 40... Kd7 {[%clk 0:00:25.1]} 41. a4 {[%clk 0:00:07.8]}
41... Ra6 {[%clk 0:00:23]} 42. Kb4 {[%clk 0:00:05]} 42... e4 {[%clk 0:00:20.2]}
43. Re5 {[%clk 0:00:03.3]} 43... Rxd6 {[%clk 0:00:19.7]} 44. Rxe4 {[%clk
0:00:03.6]} 44... Rb6+ {[%clk 0:00:18.4]} 45. Kc5 {[%clk 0:00:03.4]} 45... Rb1
{[%clk 0:00:18.4]} 46. Rf4 {[%clk 0:00:03.2]} 46... Ke6 {[%clk 0:00:18.4]} 47.
a5 {[%clk 0:00:03]} 47... Rc1+ {[%clk 0:00:14.9]} 48. Kb6 {[%clk 0:00:03.1]}
48... Rb1+ {[%clk 0:00:14.9]} 49. Ka7 {[%clk 0:00:03.5]} 49... Ra1 {[%clk
0:00:13.4]} 50. a6 {[%clk 0:00:03.3]} 50... f5 {[%clk 0:00:12.7]} 51. gxf6
{[%clk 0:00:03.1]} 51... Kf7 {[%clk 0:00:13.1]} 52. Rb4 {[%clk 0:00:02]} 52...
Kxf6 {[%clk 0:00:12.3]} 53. Kb7 {[%clk 0:00:02.4]} 53... Kf5 {[%clk 0:00:12.3]}
54. a7 {[%clk 0:00:02.7]} 54... g5 {[%clk 0:00:12.2]} 55. Kb6 {[%clk 0:00:03]}
55... g4 {[%clk 0:00:10.8]} 56. Rb5+ {[%clk 0:00:03.1]} 56... Kf4 {[%clk
0:00:10.4]} 57. Ra5 {[%clk 0:00:04]} 57... Rb1+ {[%clk 0:00:10.8]} 58. Ka6
{[%clk 0:00:03.8]} 58... g3 {[%clk 0:00:10]} 59. a8=Q {[%clk 0:00:04.2]} 59...
Re1 {[%clk 0:00:09.4]} 60. Qf8+ {[%clk 0:00:02.1]} 60... Kg4 {[%clk 0:00:09.2]}
61. Ra4+ {[%clk 0:00:02.4]} 61... Kh3 {[%clk 0:00:09.4]} 62. Ra3 {[%clk
0:00:03.3]} 62... Re6+ {[%clk 0:00:08.4]} 63. Kb5 {[%clk 0:00:04]} 63... Re5+
{[%clk 0:00:08.6]} 64. Kc6 {[%clk 0:00:04.5]} 64... Rg5 {[%clk 0:00:08.2]} 65.
Qh8+ {[%clk 0:00:04.2]} 65... Kg2 {[%clk 0:00:08.4]} 66. Ra2+ {[%clk 0:00:04.4]}
66... Kf3 {[%clk 0:00:08.4]} 67. Qh1+ {[%clk 0:00:04.8]} 67... g2 {[%clk
0:00:08.5]} 68. Ra3+ {[%clk 0:00:05.1]} 68... Kf2 {[%clk 0:00:08.5]} 69. Ra2+
{[%clk 0:00:05.6]} 69... Kf3 {[%clk 0:00:08.8]} 70. Qg1 {[%clk 0:00:06.4]} 70...
Rg6+ {[%clk 0:00:08.4]} 71. Kd5 {[%clk 0:00:07]} 71... Rg5+ {[%clk 0:00:08.6]}
72. Ke6 {[%clk 0:00:07.5]} 72... Rg4 {[%clk 0:00:08]} 73. Rf2+ {[%clk
0:00:06.7]} 73... Ke4 {[%clk 0:00:06.5]} 74. Rxg2 {[%clk 0:00:07.6]} 74... Rf4
{[%clk 0:00:07]} 75. Qe1+ {[%clk 0:00:05.2]} 75... Kf3 {[%clk 0:00:07.4]} 76.
Rf2+ {[%clk 0:00:05.2]} 76... Kg4 {[%clk 0:00:08]} 77. Qg1+ {[%clk 0:00:06.1]}
77... Kh5 {[%clk 0:00:07.7]} 78. Rh2+ {[%clk 0:00:06.6]} 78... Rh4 {[%clk
0:00:08.6]} 79. Rxh4+ {[%clk 0:00:06.8]} 79... Kxh4 {[%clk 0:00:09.5]} 80. Kf5
{[%clk 0:00:07.4]} 1-0